fUST/lending_fUST_20250221
["ID","MTS","AMOUNT","RATE_DAILY","PERIOD"]
[353927906,1740151839959,-500.0,0.00013863,2]
[353927907,1740151839969,-500.0,0.00013863,2]
[353927908,1740151839979,-500.0,0.00013863,2]
[353927909,1740151839989,-881.97,0.00013863,2]
[353927910,1740151839999,-500.0,0.00013863,2]
[353927911,1740151840008,-500.0,0.00013863,2]
[353927912,1740151840017,-500.0,0.00013863,2]
[353927913,1740151840026,-54.10241115,0.00013863,2]
[353927914,1740151840038,-445.89758885,0.00013863,2]
[353927915,1740151840048,-776.57749697,0.00013882,2]
[353927916,1740151840057,-1853.39239713,0.00013883,2]
[353927917,1740151840068,-4737.22359303,0.00013883,2]
[353927918,1740151840079,-845.17467941,0.00013883,2]
[353927919,1740151840090,-2.90686321,0.00013883,2]
[353927920,1740151840101,-621.4645933,0.0001389,2]
[353927921,1740151840112,-500.0,0.00013944,2]
[353927922,1740151840121,-500.0,0.00013944,2]
[353927923,1740151840130,-157.77,0.00013944,2]
[353927924,1740151840139,-500.0,0.00013944,2]
[353927925,1740151840148,-500.0,0.00013944,2]
[353927926,1740151840157,-500.0,0.00013944,2]
[353927927,1740151840166,-500.0,0.00013944,2]
[353927929,1740151840176,-394.08659423,0.00013944,2]
[353927932,1740151840192,-105.91340577,0.00013944,2]
[353927933,1740151840201,-500.0,0.00013944,2]
[353927935,1740151840210,-500.0,0.00013944,2]
[353927936,1740151840219,-181.69247006,0.00013944,2]
[353927938,1740151840228,-500.0,0.00013944,2]
[353927940,1740151840237,-500.0,0.00013944,2]
[353927942,1740151840247,-500.0,0.00013944,2]
[353927944,1740151840256,-500.0,0.00013944,2]
[353927946,1740151840266,-393.24146758,0.00013944,2]
[353927947,1740151840275,-500.0,0.00013944,2]
[353927949,1740151840285,-500.0,0.00013944,2]
[353927950,1740151840294,-500.0,0.00013944,2]
[353927951,1740151840303,-500.0,0.00013944,2]
[353927952,1740151840313,-302.76917827,0.00013944,2]
[353927953,1740151840322,-500.0,0.00013944,2]
[353927954,1740151840331,-500.0,0.00013944,2]
[353927956,1740151840341,-500.0,0.00013944,2]
[353927957,1740151840350,-190.4418764,0.00013944,2]
[353927958,1740151840362,-309.5581236,0.00013944,2]
[353927959,1740151840371,-500.0,0.00013944,2]
[353927960,1740151840380,-500.0,0.00013944,2]
[353927961,1740151840389,-500.0,0.00013944,2]
[353927962,1740151840398,-500.0,0.00013944,2]
[353927964,1740151840408,-500.0,0.00013944,2]
[353927966,1740151840417,-500.0,0.00013944,2]
[353927968,1740151840426,-500.0,0.00013944,2]
[353927970,1740151840435,-500.0,0.00013944,2]
[353927972,1740151840444,-266.93632086,0.00013944,2]
[353927974,1740151840453,-500.0,0.00013944,2]
[353927976,1740151840463,-500.0,0.00013944,2]
[353927978,1740151840472,-500.0,0.00013944,2]
[353927980,1740151840481,-490.8968022,0.00013944,2]
[353927982,1740151840491,-500.0,0.00013944,2]
[353927984,1740151840500,-500.0,0.00013944,2]
[353927986,1740151840511,-500.0,0.00013944,2]
[353927988,1740151840521,-500.0,0.00013944,2]
[353927990,1740151840530,-500.0,0.00013944,2]
[353927992,1740151840540,-500.0,0.00013944,2]
[353927994,1740151840549,-500.0,0.00013944,2]
[353927996,1740151840558,-500.0,0.00013944,2]
[353927998,1740151840567,-171.49843839,0.00013944,2]
[353928000,1740151840576,-500.0,0.00013944,2]
[353928011,1740151840677,-500.0,0.00013944,2]
[353928013,1740151840691,-500.0,0.00013944,2]
[353928015,1740151840701,-500.0,0.00013944,2]
[353928017,1740151840710,-500.0,0.00013944,2]
[353928019,1740151840720,-500.0,0.00013944,2]
[353928021,1740151840729,-500.0,0.00013944,2]
[353928023,1740151840739,-500.0,0.00013944,2]
[353928025,1740151840748,-500.0,0.00013944,2]
[353928028,1740151840758,-500.0,0.00013944,2]
[353928029,1740151840767,-500.0,0.00013944,2]
[353928032,1740151840776,-500.0,0.00013944,2]
[353928033,1740151840786,-500.0,0.00013944,2]
[353928036,1740151840795,-500.0,0.00013944,2]
[353928038,1740151840804,-500.0,0.00013944,2]
[353928040,1740151840813,-500.0,0.00013944,2]
[353928042,1740151840822,-500.0,0.00013944,2]
[353928043,1740151840831,-1689.90971817,0.00013945,5]
[353928044,1740151840840,-892.99,0.00013945,2]
[353928045,1740151840848,-252.84468298,0.00013945,2]
[353928049,1740151841022,-247.15531702,0.00013945,2]
[353928051,1740151841032,-500.0,0.00013945,2]
[353928053,1740151841041,-608.23,0.00013945,2]
[353928055,1740151841050,-500.0,0.00013945,2]
[353928057,1740151841060,-522.18,0.00013945,2]
[353928059,1740151841069,-589.24814031,0.00013945,2]
[353928061,1740151841079,-1073.8,0.00013945,2]
[353928063,1740151841088,-3210.11,0.00013945,2]
[353928065,1740151841098,-500.0,0.00013945,2]
[353928067,1740151841107,-500.0,0.00013945,2]
[353928069,1740151841118,-500.0,0.00013945,2]
[353928071,1740151841127,-566.6,0.00013945,2]
[353928073,1740151841136,-652.07,0.00013945,2]
[353928075,1740151841145,-500.0,0.00013945,2]
[353928077,1740151841155,-648.904947,0.00013945,2]
[353928079,1740151841166,-500.0,0.00013945,2]
[353928081,1740151841176,-500.0,0.00013945,2]
[353928084,1740151841186,-2236.83,0.00013945,2]
[353928086,1740151841196,-500.0,0.00013945,2]
[353928088,1740151841205,-680.63,0.00013945,2]
[353928090,1740151841215,-395.24488847,0.00013945,2]
[353928092,1740151841224,-7084.69,0.00013945,2]
[353928094,1740151841233,-500.0,0.00013945,2]
[353928096,1740151841243,-500.0,0.00013945,2]
[353928098,1740151841252,-179.04,0.00013945,2]
[353928100,1740151841262,-704.71,0.00013945,2]
[353928102,1740151841271,-2806.94,0.00013945,2]
[353928104,1740151841280,-500.0,0.00013945,2]
[353928106,1740151841289,-847.0,0.00013945,2]
[353928108,1740151841298,-1468.82,0.00013945,2]
[353928110,1740151841307,-500.0,0.00013945,2]
[353928112,1740151841316,-500.0,0.00013945,2]
[353928114,1740151841325,-626.3008049,0.00013945,2]
[353928116,1740151841334,-881.97,0.00013945,2]
[353928118,1740151841343,-447.11093653,0.00013945,2]
[353928120,1740151841353,-500.0,0.00013945,2]
[353928122,1740151841364,-500.0,0.00013945,2]
[353928124,1740151841373,-500.0,0.00013945,2]
[353928126,1740151841382,-152.15969173,0.0001396,2]
[353928128,1740151841391,-776.57749697,0.00013982,2]
[353928130,1740151841401,-258.63568718,0.00013983,2]
[353928132,1740151841410,-160.05877801,0.00013993,2]
[353928134,1740151841419,-500.0,0.00013993,2]
[353928136,1740151841429,-1463.16594557,0.00014,2]
[353928138,1740151841438,-892.99,0.00014027,2]
[353928140,1740151841447,-500.0,0.00014027,2]
[353928142,1740151841456,-608.23,0.00014027,2]
[353928144,1740151841465,-500.0,0.00014027,2]
[353928146,1740151841474,-522.18,0.00014027,2]
[353928148,1740151841483,-1073.8,0.00014027,2]
[353928150,1740151841492,-3210.11,0.00014027,2]
[353928152,1740151841501,-500.0,0.00014027,2]
[353928154,1740151841511,-500.0,0.00014027,2]
[353928156,1740151841520,-566.6,0.00014027,2]
[353928158,1740151841529,-652.07,0.00014027,2]
[353928160,1740151841538,-500.0,0.00014027,2]
[353928162,1740151841547,-273.25597559,0.00014027,2]
[353928164,1740151841556,-500.0,0.00014027,2]
[353928166,1740151841565,-2236.83,0.00014027,2]
[353928168,1740151841574,-500.0,0.00014027,2]
[353928170,1740151841583,-680.63,0.00014027,2]
[353928172,1740151841593,-7084.69,0.00014027,2]
[353928174,1740151841604,-500.0,0.00014027,2]
[353928176,1740151841618,-500.0,0.00014027,2]
[353928178,1740151841627,-704.71,0.00014027,2]
[353928180,1740151841636,-2806.94,0.00014027,2]
[353928182,1740151841645,-500.0,0.00014027,2]
[353928184,1740151841654,-847.0,0.00014027,2]
[353928185,1740151841665,-1468.82,0.00014027,2]
[353928188,1740151841674,-500.0,0.00014027,2]
[353928190,1740151841684,-500.0,0.00014027,2]
[353928192,1740151841694,-881.97,0.00014027,2]
[353928194,1740151841703,-500.0,0.00014027,2]
[353928196,1740151841712,-500.0,0.00014027,2]
[353928197,1740151841722,-500.0,0.00014027,2]
[353928199,1740151841731,-10082.43013817,0.0001407,3]
[353928221,1740151841926,-1218.53,0.00010959,2]
[353928223,1740151841935,-5000.0,0.00013561,2]
[353928225,1740151841944,-500.0,0.00013698,2]
[353928228,1740151841954,-229.75419687,0.0001378,2]
[353928230,1740151841964,-25808.59345319,0.0001407,3]
[353928232,1740151841973,-776.57749697,0.00014082,2]
[353928234,1740151841982,-239.67239875,0.00014098,2]
[353928236,1740151841991,-237.97535636,0.00014099,2]
[353928238,1740151842000,-500.0,0.00014099,2]
[353928240,1740151842011,-500.0,0.00014099,2]
[353928241,1740151842021,-500.0,0.00014099,2]
[353928244,1740151842036,-338.49368877,0.00014099,2]
[353928246,1740151842045,-337.67957593,0.00014099,2]
[353928248,1740151842054,-256465.58012746,0.000141,7]
[353928250,1740151842066,-359.50100004,0.000141,7]
[353928252,1740151842077,-6514.09683307,0.000141,7]
[353928523,1740151846165,-164.62533419,0.00013598,2]
[353928525,1740151846175,-500.0,0.00013698,2]
[353928527,1740151846185,-8.77466617,0.00013698,2]
[353928529,1740151846197,-491.22533383,0.00013698,2]
[353928531,1740151846207,-500.0,0.00013698,2]
[353928533,1740151846216,-475.73607671,0.000141,7]
[353928690,1740152260277,184.507628,9.041e-05,2]
[353928692,1740152811104,-211.6085088,9.8e-05,2]
[353928701,1740152965106,-24900.0,9.249e-05,2]
[353928702,1740152965127,-250.0,9.488e-05,2]
[353928703,1740152965147,-1233.8140226,9.591e-05,2]
[353928704,1740152965169,-300.0,9.799e-05,2]
[353928705,1740152965189,-4788.3914912,9.8e-05,2]
[353928706,1740152965209,-4227.0,9.8e-05,2]
[353928707,1740152965228,-4222.0,9.8e-05,2]
[353928708,1740152965248,-4222.0,9.8e-05,2]
[353928709,1740152965269,-4222.0,9.8e-05,2]
[353928710,1740152965288,-4222.0,9.8e-05,2]
[353928711,1740152965308,-4222.0,9.8e-05,2]
[353928712,1740152965327,-841.25351273,9.899e-05,2]
[353928713,1740152965351,-5000.0,9.899e-05,2]
[353928714,1740152965373,-169.870073,9.999e-05,2]
[353928715,1740152965394,-169.870073,0.00010043,2]
[353928716,1740152965414,-169.870073,0.00010088,2]
[353928717,1740152965434,-169.870073,0.00010132,2]
[353928718,1740152965454,-169.870073,0.00010176,2]
[353928719,1740152965474,-709.439474,0.00010201,2]
[353928720,1740152965495,-169.870073,0.00010221,2]
[353928721,1740152965515,-169.870073,0.00010265,2]
[353928722,1740152965536,-3008.3128351,0.00010294,2]
[353928723,1740152965556,-169.870073,0.0001031,2]
[353928724,1740152965577,-169.870073,0.00010354,2]
[353928725,1740152965601,-169.870073,0.00010399,2]
[353928726,1740152965620,-162.28966863,0.00010749,2]
[353928727,1740152965640,-420.0,0.00010779,2]
[353928728,1740152965660,-911.76,0.00010959,2]
[353928729,1740152965680,-2613.85,0.00010959,2]
[353928730,1740152965700,-2178.21,0.00010959,2]
[353928731,1740152965719,-5769.67,0.00010959,2]
[353928732,1740152965738,-4808.06,0.00010959,2]
[353928733,1740152965758,-4006.71,0.00010959,2]
[353928734,1740152965778,-3338.93,0.00010959,2]
[353928735,1740152965797,-2782.44,0.00010959,2]
[353928736,1740152965817,-2318.7,0.00010959,2]
[353928737,1740152965836,-1932.25,0.00010959,2]
[353928738,1740152965860,-1678.4883874,0.00011374,2]
[353928739,1740152965879,-26788.5999511,0.00011397,2]
[353928740,1740152965899,-194.89555964,0.00011447,2]
[353928741,1740152965920,-500.0,0.00011588,2]
[353928742,1740152965941,-14.23239273,0.00011857,2]
[353928744,1740152973146,-5000.0,9.157e-05,2]
[353928745,1740152973170,-783.84254131,0.00010959,2]
[353928746,1740152974091,-826.36745869,0.00010959,2]
[353928747,1740152974119,-572.76760727,0.00011857,2]
[353928748,1740152974139,-610.26514134,0.00012313,2]
[353928749,1740152974160,-166.0,0.00012329,2]
[353928750,1740152974181,-194.89555962,0.00012523,2]
[353928751,1740152975769,337.1278732,9.065e-05,2]
[353928752,1740152975806,948.60657836,9.065e-05,2]
[353928823,1740153032688,-5000.0,0.00010849,2]
[353928825,1740153032698,-300.0,0.00012485,2]
[353928827,1740153032709,-813.2444109,0.00012486,2]
[353928829,1740153032719,-355.163177,0.00013205,2]
[353928831,1740153032730,-153.0,0.00013616,2]
[353928833,1740153032741,-500.0,0.00013673,2]
[353928835,1740153032751,-500.0,0.00013673,2]
[353928837,1740153032762,-186.80876159,0.0001368,2]
[353928839,1740153032773,-151.0,0.0001369,2]
[353928841,1740153032783,-500.0,0.00013698,2]
[353928843,1740153032794,-503.01103909,0.00013698,2]
[353928845,1740153032805,-500.0,0.00013698,2]
[353928847,1740153032815,-251.93410789,0.00013698,2]
[353929013,1740153038581,-1104.57,0.00010959,2]
[353929015,1740153038591,-500.0,0.00011588,2]
[353929017,1740153038601,-248.06589211,0.00013698,2]
[353929019,1740153038610,-500.0,0.00013698,2]
[353929021,1740153038620,-500.0,0.00013698,2]
[353929023,1740153038629,-500.0,0.00013698,2]
[353929025,1740153038640,-500.0,0.00013698,2]
[353929027,1740153038650,-501.75137019,0.00013698,2]
[353929029,1740153038659,-500.0,0.00013698,2]
[353929031,1740153038668,-414.13899221,0.00013698,2]
[353929033,1740153038678,-370.24720803,0.00013698,2]
[353929035,1740153038687,-503.23628104,0.00013698,2]
[353929037,1740153038696,-504.69776431,0.00013698,2]
[353929039,1740153038706,-560.31942373,0.00013698,2]
[353929041,1740153038715,-505.96156691,0.00013698,2]
[353929043,1740153038724,-500.0,0.00013698,2]
[353929045,1740153038734,-500.0,0.00013698,2]
[353929047,1740153038743,-503.07818837,0.00013698,2]
[353929049,1740153038753,-500.0,0.00013698,2]
[353929051,1740153038762,-500.0,0.00013698,2]
[353929053,1740153038771,-500.0,0.00013698,2]
[353929055,1740153038780,-500.0,0.00013698,2]
[353929057,1740153038789,-503.43047296,0.00013698,2]
[353929059,1740153038799,-501.15664739,0.00013698,2]
[353929061,1740153038808,-503.53566324,0.00013698,2]
[353929064,1740153038818,-500.0,0.00013698,2]
[353929067,1740153038827,-500.0,0.00013698,2]
[353929070,1740153038836,-500.8507884,0.00013698,2]
[353929073,1740153038845,-214.88207572,0.00013698,2]
[353929075,1740153038858,-285.11792428,0.00013698,2]
[353929077,1740153038867,-500.0,0.00013698,2]
[353929079,1740153038877,-500.0,0.00013698,2]
[353929081,1740153038886,-500.0,0.00013698,2]
[353929084,1740153038899,-501.20885746,0.00013698,2]
[353929086,1740153038908,-500.0,0.00013698,2]
[353929088,1740153038917,-47.72061818,0.00013698,2]
[353929090,1740153038929,-452.27938182,0.00013698,2]
[353929092,1740153038939,-619.34,0.00013698,2]
[353929094,1740153038948,-500.0,0.00013698,2]
[353929096,1740153038957,-500.0,0.00013698,2]
[353929098,1740153038967,-500.0,0.00013698,2]
[353929100,1740153038976,-500.0,0.00013698,2]
[353929102,1740153038985,-500.0,0.00013698,2]
[353929104,1740153038995,-373.466443,0.00013698,2]
[353929106,1740153039005,-214.92038312,0.00013698,2]
[353929108,1740153039018,-433.97961688,0.00013698,2]
[353929110,1740153039028,-502.10020999,0.00013698,2]
[353929112,1740153039039,-502.01384176,0.00013698,2]
[353929114,1740153039048,-500.0,0.00013698,2]
[353929116,1740153039059,-501.67713509,0.00013698,2]
[353929118,1740153039068,-500.0,0.00013698,2]
[353929120,1740153039078,-503.38368055,0.00013698,2]
[353929122,1740153039088,-500.0,0.00013698,2]
[353929124,1740153039097,-627.10318423,0.00013698,2]
[353929126,1740153039108,-501.17903029,0.00013698,2]
[353929128,1740153039117,-500.0,0.00013698,2]
[353929130,1740153039126,-500.0,0.00013698,2]
[353929132,1740153039136,-504.43773263,0.00013698,2]
[353929134,1740153039148,-502.11579952,0.00013698,2]
[353929136,1740153039157,-500.0,0.00013698,2]
[353929138,1740153039166,-500.0,0.00013698,2]
[353929140,1740153039176,-501.41604999,0.00013698,2]
[353929142,1740153039184,-500.0,0.00013698,2]
[353929144,1740153039194,-500.0,0.00013698,2]
[353929146,1740153039203,-499.39444897,0.00013698,2]
[353929148,1740153039213,-500.0,0.00013698,2]
[353929150,1740153039222,-500.0,0.00013698,2]
[353929152,1740153039231,-500.0,0.00013698,2]
[353929154,1740153039241,-500.0,0.00013698,2]
[353929156,1740153039251,-500.0,0.00013698,2]
[353929158,1740153039260,-500.0,0.00013698,2]
[353929159,1740153039270,-500.0,0.00013698,2]
[353929160,1740153039279,-500.0,0.00013698,2]
[353929162,1740153039289,-178.88057895,0.00013698,2]
[353929164,1740153039298,-500.0,0.00013698,2]
[353929166,1740153039307,-500.0,0.00013698,2]
[353929168,1740153039317,-500.0,0.00013698,2]
[353929169,1740153039326,-500.0,0.00013698,2]
[353929171,1740153039335,-500.0,0.00013698,2]
[353929173,1740153039344,-439.00287296,0.00013698,2]
[353929175,1740153039354,-486.95820269,0.00013698,2]
[353929177,1740153039363,-500.0,0.00013698,2]
[353929179,1740153039372,-500.0,0.00013698,2]
[353929181,1740153039382,-500.0,0.00013698,2]
[353929183,1740153039393,-500.0,0.00013698,2]
[353929185,1740153039402,-500.0,0.00013698,2]
[353929187,1740153039412,-500.0,0.00013698,2]
[353929189,1740153039421,-500.0,0.00013698,2]
[353929191,1740153039430,-500.0,0.00013698,2]
[353929193,1740153039440,-500.0,0.00013698,2]
[353929195,1740153039450,-500.0,0.00013698,2]
[353929197,1740153039459,-500.0,0.00013698,2]
[353929199,1740153039468,-473.48229253,0.00013698,2]
[353929201,1740153039478,-500.0,0.00013698,2]
[353929203,1740153039487,-500.0,0.00013698,2]
[353929205,1740153039496,-500.0,0.00013698,2]
[353929207,1740153039506,-500.0,0.00013698,2]
[353929209,1740153039516,-500.0,0.00013698,2]
[353929211,1740153039525,-501.1629407,0.00013698,2]
[353929213,1740153039535,-500.0,0.00013698,2]
[353929215,1740153039545,-500.0,0.00013698,2]
[353929217,1740153039555,-500.0,0.00013698,2]
[353929219,1740153039565,-500.0,0.00013698,2]
[353929221,1740153039575,-500.0,0.00013698,2]
[353929223,1740153039585,-500.0,0.00013698,2]
[353929225,1740153039595,-500.0,0.00013698,2]
[353929227,1740153039605,-500.0,0.00013698,2]
[353929229,1740153039615,-500.0,0.00013698,2]
[353929231,1740153039624,-500.0,0.00013698,2]
[353929233,1740153039634,-500.0,0.00013698,2]
[353929235,1740153039649,-500.0,0.00013698,2]
[353929237,1740153039659,-500.0,0.00013698,2]
[353929239,1740153039668,-500.0,0.00013698,2]
[353929242,1740153039678,-500.0,0.00013698,2]
[353929243,1740153039687,-500.0,0.00013698,2]
[353929245,1740153039697,-500.0,0.00013698,2]
[353929248,1740153039706,-501.49795532,0.00013698,2]
[353929250,1740153039716,-501.12222512,0.00013698,2]
[353929253,1740153039726,-353.27511826,0.00013698,2]
[353929255,1740153039736,-500.0,0.00013698,2]
[353929257,1740153039745,-500.0,0.00013698,2]
[353929259,1740153039755,-500.0,0.00013698,2]
[353929261,1740153039765,-383.49100937,0.00013698,2]
[353929263,1740153039774,-500.0,0.00013698,2]
[353929265,1740153039784,-505.24941957,0.00013698,2]
[353929267,1740153039792,-500.0,0.00013698,2]
[353929269,1740153039802,-500.0,0.00013698,2]
[353929270,1740153039812,-501.43087206,0.00013698,2]
[353929272,1740153039821,-500.0,0.00013698,2]
[353929274,1740153039830,-500.0,0.00013698,2]
[353929276,1740153039839,-501.54869585,0.00013698,2]
[353929278,1740153039849,-501.94710915,0.00013698,2]
[353929280,1740153039858,-500.0,0.00013698,2]
[353929282,1740153039868,-500.0,0.00013698,2]
[353929284,1740153039877,-500.0,0.00013698,2]
[353929286,1740153039887,-500.59074097,0.00013698,2]
[353929288,1740153039900,-501.38713385,0.00013698,2]
[353929290,1740153039910,-610.94753657,0.00013698,2]
[353929292,1740153039919,-500.0,0.00013698,2]
[353929294,1740153039929,-500.0,0.00013698,2]
[353929296,1740153039938,-505.54491888,0.00013698,2]
[353929298,1740153039948,-500.0,0.00013698,2]
[353929300,1740153039958,-500.0,0.00013698,2]
[353929302,1740153039967,-500.0,0.00013698,2]
[353929305,1740153039977,-584.69329146,0.00013698,2]
[353929307,1740153039987,-503.14841777,0.00013698,2]
[353929309,1740153039997,-500.0,0.00013698,2]
[353929310,1740153040006,-500.0,0.00013698,2]
[353929311,1740153040017,-249.49047792,0.00013698,2]
[353929312,1740153040029,-500.97183277,0.00013698,2]
[353929313,1740153040038,-500.0,0.00013698,2]
[353929314,1740153040049,-500.0,0.00013698,2]
[353929315,1740153040059,-500.67156934,0.00013698,2]
[353929316,1740153040070,-500.0,0.00013698,2]
[353929317,1740153040080,-502.95732577,0.00013698,2]
[353929318,1740153040090,-504.38779173,0.00013698,2]
[353929319,1740153040099,-500.0,0.00013698,2]
[353929321,1740153040110,-501.54370907,0.00013698,2]
[353929323,1740153040119,-503.65786046,0.00013698,2]
[353929325,1740153040128,-500.0,0.00013698,2]
[353929327,1740153040141,-500.0,0.00013698,2]
[353929328,1740153040151,-500.0,0.00013698,2]
[353929330,1740153040161,-500.0,0.00013698,2]
[353929332,1740153040171,-236.0648205,0.00013698,2]
[353929334,1740153040181,-502.73988641,0.00013698,2]
[353929336,1740153040191,-322.02360436,0.00013698,2]
[353929338,1740153040202,-503.943409,0.00013698,2]
[353929340,1740153040211,-500.0,0.00013698,2]
[353929342,1740153040220,-500.0,0.00013698,2]
[353929344,1740153040230,-500.0,0.00013698,2]
[353929346,1740153040239,-514.0181736,0.00013698,2]
[353929348,1740153040249,-500.0,0.00013698,2]
[353929350,1740153040259,-500.0,0.00013698,2]
[353929351,1740153040269,-500.0,0.00013698,2]
[353929354,1740153040279,-501.69534111,0.00013698,2]
[353929356,1740153040288,-500.0,0.00013698,2]
[353929358,1740153040298,-501.07351693,0.00013698,2]
[353929360,1740153040307,-501.115861,0.00013698,2]
[353929361,1740153040317,-501.30569182,0.00013698,2]
[353929364,1740153040327,-246.3632,0.00013698,2]
[353929366,1740153040336,-500.0,0.00013698,2]
[353929367,1740153040345,-698.23,0.00013698,2]
[353929369,1740153040355,-500.0,0.00013698,2]
[353929371,1740153040365,-502.35,0.00013698,2]
[353929373,1740153040375,-500.0,0.00013698,2]
[353929375,1740153040385,-500.0,0.00013698,2]
[353929377,1740153040400,-2571.74,0.00013698,2]
[353929380,1740153040410,-501.25241644,0.00013698,2]
[353929382,1740153040421,-500.0,0.00013698,2]
[353929384,1740153040431,-500.0,0.00013698,2]
[353929386,1740153040441,-500.0,0.00013698,2]
[353929388,1740153040451,-500.0,0.00013698,2]
[353929390,1740153040461,-373.21741058,0.00013698,2]
[353929392,1740153040471,-503.52717715,0.00013698,2]
[353929394,1740153040481,-501.86206899,0.00013698,2]
[353929396,1740153040491,-503.28377836,0.00013698,2]
[353929397,1740153040501,-162.50555471,0.00013698,2]
[353929399,1740153040511,-500.0,0.00013698,2]
[353929401,1740153040521,-550.9,0.00013698,2]
[353929404,1740153040531,-500.0,0.00013698,2]
[353929406,1740153040541,-500.0,0.00013698,2]
[353929408,1740153040551,-502.37074502,0.00013698,2]
[353929409,1740153040561,-500.0,0.00013698,2]
[353929410,1740153040571,-577.47893819,0.00013698,2]
[353929411,1740153040581,-319.18200661,0.00013698,2]
[353929412,1740153040591,-500.0,0.00013698,2]
[353929413,1740153040601,-500.0,0.00013698,2]
[353929414,1740153040611,-500.0,0.00013698,2]
[353929415,1740153040620,-501.47323968,0.00013698,2]
[353929416,1740153040630,-9.56208983,0.00013698,2]
[353929423,1740153040730,-492.60085155,0.00013698,2]
[353929425,1740153040740,-500.0,0.00013698,2]
[353929427,1740153040749,-615.21161205,0.00013698,2]
[353929429,1740153040759,-500.0,0.00013698,2]
[353929431,1740153040768,-503.18391678,0.00013698,2]
[353929433,1740153040777,-500.0,0.00013698,2]
[353929435,1740153040786,-502.17608566,0.00013698,2]
[353929437,1740153040796,-500.0,0.00013698,2]
[353929439,1740153040805,-500.0,0.00013698,2]
[353929441,1740153040814,-500.0,0.00013698,2]
[353929443,1740153040824,-500.0,0.00013698,2]
[353929445,1740153040833,-500.0,0.00013698,2]
[353929447,1740153040842,-728.04,0.00013698,2]
[353929449,1740153040852,-500.0,0.00013698,2]
[353929451,1740153040861,-502.7699724,0.00013698,2]
[353929453,1740153040870,-501.38393187,0.00013698,2]
[353929455,1740153040879,-501.07652808,0.00013698,2]
[353929457,1740153040892,-500.0,0.00013698,2]
[353929459,1740153040902,-504.54738664,0.00013698,2]
[353929461,1740153040911,-624.29720727,0.00013698,2]
[353929463,1740153040920,-850.1,0.00013698,2]
[353929465,1740153040930,-502.10683853,0.00013698,2]
[353929467,1740153040939,-500.0,0.00013698,2]
[353929469,1740153040949,-503.30432929,0.00013698,2]
[353929471,1740153040960,-362.65348386,0.00013698,2]
[353929473,1740153040970,-503.29685542,0.00013698,2]
[353929475,1740153040981,-500.0,0.00013698,2]
[353929477,1740153040990,-500.0,0.00013698,2]
[353929479,1740153041000,-501.83908951,0.00013698,2]
[353929481,1740153041009,-188.81604529,0.00013698,2]
[353929483,1740153041020,-500.0,0.00013698,2]
[353929485,1740153041029,-507.44532528,0.00013698,2]
[353929487,1740153041040,-500.0,0.00013698,2]
[353929489,1740153041049,-500.63919063,0.00013698,2]
[353929502,1740153041169,-500.0,0.00013698,2]
[353929504,1740153041179,-502.05587749,0.00013698,2]
[353929506,1740153041189,-500.0,0.00013698,2]
[353929508,1740153041200,-502.16543998,0.00013698,2]
[353929510,1740153041209,-500.0,0.00013698,2]
[353929512,1740153041218,-500.0,0.00013698,2]
[353929514,1740153041227,-500.0,0.00013698,2]
[353929516,1740153041237,-501.49093117,0.00013698,2]